bitfinex/quotes_BTCUSD_20260101
["timestamp","ask_amount","ask_price","bid_price","bid_amount"]
[1767266749760,0.0114,87968.0,87959.0,0.01136893]
[1767266749902,0.0114,87968.0,87960.0,0.0113688]
[1767266750561,0.0114,87968.0,87961.0,0.01136867]
[1767266750967,0.0114,87968.0,87960.0,0.0113688]
[1767266751104,0.0114,87968.0,87961.0,0.01136867]
[1767266751542,0.0114,87968.0,87960.0,0.0113688]
[1767266752646,0.0114,87968.0,87961.0,0.01136867]
[1767266753961,0.0114,87968.0,87960.0,0.0113688]
[1767266754174,0.0114,87968.0,87961.0,0.01136867]
[1767266754568,0.0114,87968.0,87959.0,0.01136893]
[1767266754764,0.0114,87968.0,87960.0,0.0113688]
[1767266754970,0.0114,87968.0,87959.0,0.01136893]
[1767266755264,0.0114,87968.0,87957.0,0.01136919]
[1767266755885,0.0114,87968.0,87959.0,0.01136893]
[1767266756923,0.0114,87968.0,87955.0,0.06985335]
[1767266757098,0.0114,87968.0,87956.0,0.01136932]
[1767266757473,0.0114,87968.0,87957.0,0.01136919]
[1767266758515,0.0114,87968.0,87956.0,0.01136932]
[1767266758716,0.0114,87968.0,87957.0,0.01136919]
[1767266759636,0.0114,87968.0,87958.0,0.01136906]
[1767266759830,0.0114,87968.0,87957.0,0.01136919]
[1767266760441,0.0114,87968.0,87956.0,0.01136932]
[1767266760859,0.0114,87968.0,87957.0,0.01136919]
[1767266761693,0.0114,87968.0,87956.0,0.01136932]
[1767266762026,0.0114,87968.0,87957.0,0.01136919]
[1767266762565,0.0114,87968.0,87957.0,0.06821506]
[1767266762707,0.0114,87968.0,87958.0,0.01136906]
[1767266763514,0.0114,87968.0,87957.0,0.01136919]
[1767266764436,0.0114,87968.0,87956.0,0.01136932]
[1767266765267,0.0114,87968.0,87957.0,0.01136919]
[1767266765867,0.0114,87968.0,87956.0,0.01136932]
[1767266766574,0.0114,87968.0,87957.0,0.01136919]
[1767266766795,0.0114,87968.0,87956.0,0.01136932]
[1767266767538,0.0114,87968.0,87957.0,0.01136919]
[1767266767782,0.0114,87968.0,87955.0,0.12670012]
[1767266767783,0.0114,87968.0,87955.0,0.01157329]
[1767266768109,0.05904173,87967.0,87955.0,0.0002041]
[1767266768262,0.04836321,87967.0,87955.0,0.0002041]
[1767266770090,0.05976321,87968.0,87955.0,0.0002041]
[1767266771009,0.09389812,87968.0,87955.0,0.0002041]
[1767266775553,0.04836321,87967.0,87955.0,0.0002041]
[1767266779582,0.08249812,87967.0,87955.0,0.0002041]
[1767266780191,0.04836321,87966.0,87955.0,0.0002041]
[1767266782783,0.04553491,87968.0,87955.0,0.0002041]
[1767266784210,0.0114,87968.0,87955.0,0.0002041]
[1767266784630,0.0113697,87967.0,87955.0,0.0002041]
[1767266786958,0.0114,87968.0,87955.0,0.0002041]
[1767266789459,0.0227697,87968.0,87955.0,0.0002041]
[1767266796185,0.03526778,87967.0,87955.0,0.0002041]
[1767266796499,0.02459352,87967.0,87955.0,0.0002041]
[1767266797288,0.01067816,87966.0,87955.0,0.0002041]
[1767266797465,0.02459352,87967.0,87955.0,0.0002041]
[1767266797672,0.01067816,87966.0,87955.0,0.0002041]
[1767266797873,0.02459352,87967.0,87955.0,0.0002041]
[1767266798071,0.01067816,87966.0,87955.0,0.0002041]
[1767266798282,0.02459352,87967.0,87955.0,0.0002041]
[1767266798497,0.01067825,87966.0,87955.0,0.0002041]
[1767266798714,0.02459352,87967.0,87955.0,0.0002041]
[1767266798914,0.01067825,87966.0,87955.0,0.0002041]
[1767266799136,0.02459352,87967.0,87955.0,0.0002041]
[1767266799429,0.0106783,87966.0,87955.0,0.0002041]
[1767266799631,0.02459352,87967.0,87955.0,0.0002041]
[1767266799933,0.0106783,87966.0,87955.0,0.0002041]
[1767266800116,0.02459352,87967.0,87955.0,0.0002041]
[1767266800318,0.0106783,87966.0,87955.0,0.0002041]
[1767266800514,0.02459352,87967.0,87955.0,0.0002041]
[1767266800740,0.01067834,87966.0,87955.0,0.0002041]
[1767266800924,0.02459352,87967.0,87955.0,0.0002041]
[1767266801124,0.01067834,87966.0,87955.0,0.0002041]
[1767266801325,0.02459352,87967.0,87955.0,0.0002041]
[1767266801514,0.01067838,87966.0,87955.0,0.0002041]
[1767266801710,0.02459352,87967.0,87955.0,0.0002041]
[1767266801932,0.01067838,87966.0,87955.0,0.0002041]
[1767266802149,0.02459352,87967.0,87955.0,0.0002041]
[1767266802356,0.01067843,87966.0,87955.0,0.0002041]
[1767266802527,0.02459352,87967.0,87955.0,0.0002041]
[1767266802729,0.01067843,87966.0,87955.0,0.0002041]
[1767266802949,0.02459352,87967.0,87955.0,0.0002041]
[1767266803132,0.01067843,87966.0,87955.0,0.0002041]
[1767266803334,0.02459352,87967.0,87955.0,0.0002041]
[1767266803533,0.01067849,87966.0,87955.0,0.0002041]
[1767266803733,0.02459352,87967.0,87955.0,0.0002041]
[1767266803953,0.01067849,87966.0,87955.0,0.0002041]
[1767266804154,0.02459352,87967.0,87955.0,0.0002041]
[1767266804399,0.01067856,87966.0,87955.0,0.0002041]
[1767266804600,0.02459352,87967.0,87955.0,0.0002041]
[1767266804806,0.01067856,87966.0,87955.0,0.0002041]
[1767266804949,0.02459352,87967.0,87955.0,0.0002041]
[1767266805152,0.01067856,87966.0,87955.0,0.0002041]
[1767266805358,0.02459352,87967.0,87955.0,0.0002041]
[1767266805554,0.01067869,87966.0,87955.0,0.0002041]
[1767266805764,0.02459352,87967.0,87955.0,0.0002041]
[1767266805977,0.0106787,87966.0,87955.0,0.0002041]
[1767266806292,0.02459352,87967.0,87955.0,0.0002041]
[1767266806451,0.0106787,87966.0,87955.0,0.0002041]
[1767266806662,0.02459352,87967.0,87955.0,0.0002041]
[1767266806857,0.0106787,87966.0,87955.0,0.0002041]
[1767266807061,0.02459352,87967.0,87955.0,0.0002041]
[1767266807284,0.0106787,87966.0,87955.0,0.0002041]
[1767266807483,0.02459352,87967.0,87955.0,0.0002041]
[1767266807682,0.0106787,87966.0,87955.0,0.0002041]
[1767266807983,0.02459352,87967.0,87955.0,0.0002041]
[1767266808162,0.0106787,87966.0,87955.0,0.0002041]
[1767266808506,0.0106787,87965.0,87955.0,0.0002041]
[1767266808644,0.02459352,87967.0,87955.0,0.0002041]
[1767266808840,0.01067876,87966.0,87955.0,0.0002041]
[1767266809065,0.01067876,87965.0,87955.0,0.0002041]
[1767266809321,0.02459352,87967.0,87955.0,0.0002041]
[1767266809611,0.01067831,87966.0,87955.0,0.0002041]
[1767266809763,0.01067831,87965.0,87955.0,0.0002041]
[1767266809974,0.02459352,87967.0,87955.0,0.0002041]
[1767266810186,0.01067831,87966.0,87955.0,0.0002041]
[1767266810508,0.01067831,87965.0,87955.0,0.0002041]
[1767266810817,0.02459352,87967.0,87955.0,0.0002041]
[1767266811004,0.01067811,87966.0,87955.0,0.0002041]
[1767266811165,0.01067811,87965.0,87955.0,0.0002041]
[1767266811373,0.02459352,87967.0,87955.0,0.0002041]
[1767266811571,0.01067795,87966.0,87955.0,0.0002041]
[1767266811790,0.01067795,87965.0,87955.0,0.0002041]
[1767266811993,0.02459352,87967.0,87955.0,0.0002041]
[1767266812205,0.01067795,87966.0,87955.0,0.0002041]
[1767266812415,0.01067795,87965.0,87955.0,0.0002041]
[1767266812588,0.02459352,87967.0,87955.0,0.0002041]
[1767266812785,0.01067784,87966.0,87955.0,0.0002041]
[1767266812992,0.01067784,87965.0,87955.0,0.0002041]
[1767266813173,0.02459352,87967.0,87955.0,0.0002041]
[1767266813374,0.01067772,87966.0,87955.0,0.0002041]
[1767266813581,0.01067772,87965.0,87955.0,0.0002041]
[1767266813775,0.02459352,87967.0,87955.0,0.0002041]
[1767266814026,0.01067773,87966.0,87955.0,0.0002041]
[1767266814226,0.02459352,87967.0,87955.0,0.0002041]
[1767266814393,0.01067764,87966.0,87955.0,0.0002041]
[1767266814589,0.01067764,87965.0,87955.0,0.0002041]
[1767266814909,0.02459352,87967.0,87955.0,0.0002041]
[1767266815225,0.01067765,87966.0,87955.0,0.0002041]
[1767266815391,0.01067765,87965.0,87955.0,0.0002041]
[1767266815577,0.02459352,87967.0,87955.0,0.0002041]
[1767266815776,0.01067757,87966.0,87955.0,0.0002041]
[1767266816010,0.01067757,87965.0,87955.0,0.0002041]
[1767266816231,0.02459352,87967.0,87955.0,0.0002041]
[1767266816435,0.0106775,87966.0,87955.0,0.0002041]
[1767266816641,0.02459352,87967.0,87955.0,0.0002041]
[1767266816806,0.0106775,87966.0,87955.0,0.0002041]
[1767266817186,0.02459352,87967.0,87955.0,0.0002041]
[1767266817381,0.01067744,87966.0,87955.0,0.0002041]
[1767266817564,0.02459352,87967.0,87955.0,0.0002041]
[1767266817882,0.01067744,87966.0,87955.0,0.0002041]
[1767266818086,0.02459352,87967.0,87955.0,0.0002041]
[1767266818293,0.0106774,87966.0,87955.0,0.0002041]
[1767266818490,0.02459352,87967.0,87955.0,0.0002041]
[1767266818785,0.0106774,87966.0,87955.0,0.0002041]
[1767266818988,0.02459352,87967.0,87955.0,0.0002041]
[1767266819286,0.0106774,87966.0,87955.0,0.0002041]
[1767266819490,0.02459352,87967.0,87955.0,0.0002041]
[1767266819705,0.01067736,87966.0,87955.0,0.0002041]
[1767266819889,0.02459352,87967.0,87955.0,0.0002041]
[1767266820057,0.01067736,87966.0,87955.0,0.0002041]
[1767266820256,0.02459352,87967.0,87955.0,0.0002041]
[1767266820456,0.01067735,87966.0,87955.0,0.0002041]
[1767266820656,0.02459352,87967.0,87955.0,0.0002041]
[1767266820839,0.01067735,87966.0,87955.0,0.0002041]
[1767266821050,0.02459352,87967.0,87955.0,0.0002041]
[1767266821254,0.01067735,87966.0,87955.0,0.0002041]
[1767266821468,0.02459352,87967.0,87955.0,0.0002041]
[1767266821671,0.01067733,87966.0,87955.0,0.0002041]
[1767266821949,0.02459352,87967.0,87955.0,0.0002041]
[1767266822147,0.01067733,87966.0,87955.0,0.0002041]
[1767266822351,0.02459352,87967.0,87955.0,0.0002041]
[1767266822548,0.01067731,87966.0,87955.0,0.0002041]
[1767266822792,0.02459352,87967.0,87955.0,0.0002041]
[1767266822991,0.01067731,87966.0,87955.0,0.0002041]
[1767266823295,0.02459352,87967.0,87955.0,0.0002041]
[1767266823471,0.0106773,87966.0,87955.0,0.0002041]
[1767266823671,0.02459352,87967.0,87955.0,0.0002041]
[1767266823874,0.0106773,87966.0,87955.0,0.0002041]
[1767266824074,0.02459352,87967.0,87955.0,0.0002041]
[1767266824332,0.0106773,87966.0,87955.0,0.0002041]
[1767266824470,0.02459352,87967.0,87955.0,0.0002041]
[1767266824672,0.0106773,87966.0,87955.0,0.0002041]
[1767266824880,0.02459352,87967.0,87955.0,0.0002041]
[1767266825100,0.0106773,87966.0,87955.0,0.0002041]
[1767266825305,0.02459352,87967.0,87955.0,0.0002041]
[1767266825497,0.01067731,87966.0,87955.0,0.0002041]
[1767266825682,0.02459352,87967.0,87955.0,0.0002041]
[1767266825884,0.01067731,87966.0,87955.0,0.0002041]
[1767266826089,0.02459352,87967.0,87955.0,0.0002041]
[1767266826310,0.01067732,87966.0,87955.0,0.0002041]
[1767266826505,0.02459352,87967.0,87955.0,0.0002041]
[1767266826822,0.01067732,87966.0,87955.0,0.0002041]
[1767266827028,0.02459352,87967.0,87955.0,0.0002041]
[1767266827228,0.01067732,87966.0,87955.0,0.0002041]
[1767266827441,0.02459352,87967.0,87955.0,0.0002041]
[1767266827664,0.01067734,87966.0,87955.0,0.0002041]
[1767266827850,0.02459352,87967.0,87955.0,0.0002041]
[1767266828158,0.01067734,87966.0,87955.0,0.0002041]
[1767266828299,0.02459352,87967.0,87955.0,0.0002041]
[1767266828511,0.01067737,87966.0,87955.0,0.0002041]
[1767266828715,0.02459352,87967.0,87955.0,0.0002041]
[1767266828928,0.01067737,87966.0,87955.0,0.0002041]
[1767266829128,0.02459352,87967.0,87955.0,0.0002041]
[1767266829429,0.01067741,87966.0,87955.0,0.0002041]
[1767266829665,0.02459352,87967.0,87955.0,0.0002041]
[1767266829823,0.01067741,87966.0,87955.0,0.0002041]
[1767266830028,0.02459352,87967.0,87955.0,0.0002041]
[1767266830230,0.01067741,87966.0,87955.0,0.0002041]
[1767266830452,0.01067741,87965.0,87955.0,0.0002041]
[1767266830656,0.02459352,87967.0,87955.0,0.0002041]
[1767266831003,0.01067747,87966.0,87955.0,0.0002041]
[1767266831205,0.01067747,87965.0,87955.0,0.0002041]
[1767266831406,0.02459352,87967.0,87955.0,0.0002041]
[1767266831534,0.01067752,87966.0,87955.0,0.0002041]
[1767266831743,0.01067752,87965.0,87956.0,0.51287396]
[1767266832039,0.02459352,87967.0,87956.0,0.51287396]
[1767266839276,0.02459352,87967.0,87957.0,0.01136919]
[1767266839458,0.0114,87966.0,87957.0,0.01136919]
[1767266840800,0.0114,87966.0,87956.0,0.52424328]
[1767266841000,0.0114,87966.0,87957.0,0.01136919]
[1767266841716,0.0114,87966.0,87958.0,0.04600863]
[1767266854218,0.0114,87966.0,87955.0,0.0002041]
[1767266856547,0.0114,87966.0,87955.0,0.01157355]
[1767266856968,0.0114,87966.0,87955.0,0.0002041]
[1767266858155,0.0114,87966.0,87955.0,0.01157355]
[1767266858302,0.0114,87966.0,87955.0,0.0002041]
[1767266859839,0.0114,87966.0,87955.0,0.01157355]
[1767266860363,0.0114,87966.0,87955.0,0.0002041]
[1767266860569,0.0114,87966.0,87955.0,0.01157355]
[1767266861842,0.0114,87966.0,87955.0,0.0002041]
[1767266862000,0.0114,87966.0,87955.0,0.01157355]
[1767266862189,0.0114,87966.0,87955.0,0.0002041]
[1767266876086,0.04668481,87965.0,87955.0,1e-07]
[1767266881062,0.12730021,87960.0,87955.0,1e-07]
[1767266881262,0.04668481,87959.0,87955.0,1e-07]
[1767266881517,0.05808481,87959.0,87955.0,1e-07]
[1767266882768,0.0114,87959.0,87955.0,1e-07]
[1767266887089,0.0114,87959.0,87947.0,0.02288879]
[1767266887296,0.0114,87959.0,87947.0,0.01137048]
[1767266889890,0.011196,87959.0,87948.0,0.04506974]
[1767266890093,0.011196,87959.0,87950.0,0.01137009]
[1767266890986,0.011196,87959.0,87951.0,0.01136996]
[1767266891189,0.011196,87959.0,87950.0,0.01137009]
[1767266891610,0.011196,87959.0,87951.0,0.01136996]
[1767266891948,0.011196,87959.0,87950.0,0.01137009]
[1767266893121,0.011196,87959.0,87949.0,0.05643996]
[1767266893322,0.011196,87959.0,87950.0,0.01137009]
[1767266893525,0.011196,87959.0,87949.0,0.05643996]
[1767266895249,0.011196,87959.0,87950.0,0.04506974]
[1767266896918,0.011196,87959.0,87950.0,0.05643983]
[1767266899171,0.011196,87959.0,87950.0,0.04506974]
[1767266899379,0.011196,87959.0,87950.0,0.05643983]
[1767266899944,0.011196,87959.0,87950.0,0.04506974]
[1767266900378,0.011196,87959.0,87951.0,0.04506974]
[1767266900577,0.011196,87959.0,87952.0,0.04506974]
[1767266900982,0.011196,87959.0,87952.0,0.05643957]
[1767266901424,0.0114,87959.0,87953.0,0.0113697]
[1767266901625,0.0114,87959.0,87953.0,0.04506974]
[1767266901801,0.0114,87959.0,87954.0,0.04506974]
[1767266902449,0.0114,87961.0,87953.0,0.05755645]
[1767266902662,0.0114,87961.0,87953.0,0.04618675]
[1767266903048,0.0114,87961.0,87953.0,0.05755645]
[1767266903315,0.0114,87961.0,87953.0,0.04618675]
[1767266905761,0.0114,87961.0,87953.0,0.05755645]
[1767266905945,0.0114,87961.0,87953.0,0.04618675]
[1767266907054,0.0114,87961.0,87953.0,0.05755645]
[1767266907284,0.0114,87961.0,87953.0,0.0576622]
[1767266907859,0.0114,87961.0,87953.0,0.0462925]
[1767266908483,0.0114,87961.0,87953.0,0.0576622]
[1767266910167,0.0114,87961.0,87953.0,0.0462925]
[1767266910384,0.0114,87961.0,87953.0,0.0576622]
[1767266910753,0.0114,87961.0,87953.0,0.0462925]
[1767266911062,0.0114,87961.0,87953.0,0.0576622]
[1767266913196,0.0114,87961.0,87953.0,0.0462925]
[1767266913390,0.0114,87961.0,87953.0,0.0576622]
[1767266915297,0.0114,87961.0,87953.0,0.0462925]
[1767266916204,0.0114,87961.0,87953.0,0.0576622]
[1767266920165,0.0114,87961.0,87954.0,0.01136957]
[1767266920463,0.0114,87961.0,87953.0,0.0576622]
[1767266923638,0.0114,87961.0,87953.0,0.0462925]
[1767266923837,0.0114,87961.0,87953.0,0.0576622]
[1767266924474,0.0114,87961.0,87953.0,0.0462925]
[1767266925038,0.0114,87961.0,87953.0,0.0576622]
[1767266927579,0.0114,87961.0,87953.0,0.0462925]
[1767266928347,0.0114,87961.0,87953.0,0.0576622]
[1767266930484,0.0114,87961.0,87953.0,0.0462925]
[1767266930704,0.0114,87961.0,87953.0,0.0576622]
[1767266930896,0.0114,87961.0,87953.0,0.0462925]
[1767266931381,0.0114,87961.0,87953.0,0.0576622]
[1767266933528,0.0114,87964.0,87953.0,0.0576622]
[1767266934504,0.0114,87964.0,87954.0,0.01136957]
[1767266934703,0.0114,87964.0,87953.0,0.0576622]
[1767266938448,0.0114,87964.0,87954.0,0.01136957]
[1767266939312,0.0114,87964.0,87953.0,0.0576622]
[1767266939505,0.0114,87964.0,87954.0,0.01136957]
[1767266940561,0.0114,87964.0,87953.0,0.0576622]
[1767266941621,0.0114,87964.0,87954.0,0.01136957]
[1767266941820,0.15804211,87974.0,87954.0,0.01136957]
[1767266941821,0.0114,87968.0,87964.0,0.00055]
[1767266942026,0.0114,87971.0,87960.0,0.0113688]
[1767266942234,0.0114,87971.0,87961.0,0.01136867]
[1767266942839,0.0114,87971.0,87960.0,0.51288848]
[1767266942840,0.0114,87971.0,87960.0,0.52425728]
[1767266943004,0.0114,87971.0,87961.0,0.01136867]
[1767266943210,0.0114,87971.0,87960.0,0.52425728]
[1767266943574,0.0114,87971.0,87961.0,0.01136867]
[1767266943757,0.0114,87971.0,87960.0,0.52425728]
[1767266945552,0.0114,87971.0,87961.0,0.01136867]
[1767266945927,0.0114,87971.0,87960.0,0.52425728]
[1767266946288,0.0114,87971.0,87961.0,0.01136867]
[1767266946493,0.0114,87972.0,87962.0,0.04974243]
[1767266947435,0.0114,87972.0,87960.0,0.52425728]
[1767266947673,0.0114,87972.0,87961.0,0.01136867]
[1767266947818,0.0114,87972.0,87960.0,0.52425728]
[1767266948219,0.0114,87972.0,87961.0,0.01136867]
[1767266948537,0.0114,87972.0,87960.0,0.0113688]
[1767266948704,0.0114,87972.0,87960.0,0.52425728]
[1767266949316,0.04553336,87972.0,87960.0,0.52425728]
[1767266949523,0.04553336,87972.0,87961.0,0.01136867]
[1767266950255,0.04553336,87972.0,87960.0,0.51288848]
[1767266952035,0.04553336,87972.0,87960.0,0.52425728]
[1767266952883,0.04553336,87972.0,87960.0,0.51288848]
[1767266953300,0.04553336,87972.0,87960.0,0.52425728]
[1767266953521,0.04553336,87972.0,87960.0,0.51288848]
[1767266953678,0.04553336,87972.0,87960.0,0.49570905]
[1767266955374,0.04553336,87972.0,87960.0,0.50707785]
[1767266956699,0.04553336,87972.0,87960.0,0.52425728]
[1767266958203,0.04553336,87972.0,87957.0,0.04974243]
[1767266958420,0.04553336,87972.0,87960.0,0.51288848]
[1767266958820,0.03525302,87971.0,87960.0,0.51288848]
[1767266959023,0.02458348,87971.0,87960.0,0.51288848]
[1767266961321,0.01067051,87970.0,87960.0,0.51288848]
[1767266961509,0.02458348,87971.0,87960.0,0.51288848]
[1767266961712,0.01067051,87970.0,87960.0,0.51288848]
[1767266961907,0.02458348,87971.0,87960.0,0.51288848]
[1767266962112,0.01067051,87970.0,87960.0,0.51288848]
[1767266962451,0.02458348,87971.0,87960.0,0.51288848]
[1767266962612,0.01067081,87970.0,87960.0,0.51288848]
[1767266962828,0.02458348,87971.0,87960.0,0.51288848]
[1767266963018,0.01067081,87970.0,87960.0,0.51288848]
[1767266963219,0.02458348,87971.0,87960.0,0.51288848]
[1767266963438,0.01067113,87970.0,87960.0,0.51288848]
[1767266963636,0.04782727,87970.0,87960.0,0.51288848]
[1767266963849,0.04782727,87970.0,87960.0,0.51148003]
[1767266968289,0.04782727,87970.0,87960.0,0.51288848]
[1767266969288,0.03526724,87969.0,87960.0,0.51288848]
[1767266969580,0.02459323,87969.0,87960.0,0.51288848]
[1767266971032,0.02459323,87969.0,87955.0,0.01136945]
[1767266971177,0.02459323,87969.0,87959.0,0.51288848]
[1767266975040,0.02459323,87969.0,87954.0,0.10235024]
[1767266975041,0.04782727,87968.0,87954.0,0.03413336]
[1767266975199,0.04782727,87968.0,87950.0,0.07962048]
[1767266975200,0.04782727,87968.0,87952.0,0.01136983]
[1767266975539,0.04782727,87967.0,87953.0,0.01147545]
[1767266975944,0.01147545,87966.0,87954.0,0.01136957]
[1767266976140,0.04782727,87967.0,87954.0,0.01136957]
[1767266976548,0.05930272,87967.0,87954.0,0.01136957]
[1767266976842,0.04782727,87967.0,87954.0,0.01136957]
[1767266977826,0.04782727,87967.0,87953.0,0.01147545]
[1767266978030,0.04782727,87967.0,87954.0,0.01136957]
[1767266978456,0.04782727,87967.0,87953.0,0.0605915]
[1767266979127,0.04782727,87967.0,87954.0,0.01136957]
[1767266979322,0.04782727,87967.0,87953.0,0.0605915]
[1767266980125,0.03413351,87970.0,87954.0,0.04911605]
[1767266980330,0.03526982,87969.0,87954.0,0.04911605]
[1767266980539,0.03526982,87968.0,87955.0,0.03413351]
[1767266980736,0.04782727,87971.0,87955.0,0.03413351]
[1767266980942,0.03526982,87970.0,87955.0,0.03413351]
[1767266981120,0.01067497,87969.0,87955.0,0.03413351]
[1767266981325,0.01067497,87968.0,87955.0,0.03413351]
[1767266981585,0.02459485,87970.0,87955.0,0.03413351]
[1767266981815,0.01067507,87969.0,87955.0,0.03413351]
[1767266981985,0.01067507,87968.0,87955.0,0.03413351]
[1767266982150,0.02459485,87970.0,87955.0,0.03413351]
[1767266982351,0.01067513,87969.0,87955.0,0.03413351]
[1767266982584,0.01067513,87968.0,87955.0,0.03413351]
[1767266982799,0.02459485,87970.0,87955.0,0.03413351]
[1767266982961,0.01067513,87969.0,87955.0,0.03413351]
[1767266983169,0.01067513,87968.0,87955.0,0.03413351]
[1767266983501,0.02459485,87970.0,87955.0,0.03413351]
[1767266983668,0.01067523,87969.0,87955.0,0.03413351]
[1767266983869,0.01067523,87968.0,87955.0,0.03413351]
[1767266984091,0.02459485,87970.0,87955.0,0.03413351]
[1767266984451,0.01067538,87969.0,87955.0,0.03413351]
[1767266984651,0.01067538,87968.0,87955.0,0.03413351]
[1767266984886,0.02459485,87970.0,87955.0,0.03413351]
[1767266985097,0.01067537,87969.0,87955.0,0.03413351]
[1767266985264,0.01067537,87968.0,87955.0,0.03413351]
[1767266985605,0.02459485,87970.0,87955.0,0.03413351]
[1767266985785,0.01067555,87969.0,87955.0,0.03413351]
[1767266986127,0.01067555,87968.0,87955.0,0.03413351]
[1767266986304,0.02459485,87970.0,87955.0,0.03413351]
[1767266986469,0.01067582,87969.0,87955.0,0.03413351]
[1767266986687,0.01067582,87968.0,87955.0,0.03413351]
[1767266987048,0.02459485,87970.0,87955.0,0.03413351]
[1767266987324,0.01067618,87969.0,87955.0,0.03413351]
[1767266987524,0.01067618,87968.0,87955.0,0.03413351]
[1767266987729,0.02459485,87970.0,87955.0,0.03413351]
[1767266988023,0.01067618,87969.0,87955.0,0.03413351]
[1767266988233,0.01067618,87968.0,87955.0,0.03413351]
[1767266988431,0.02459485,87970.0,87955.0,0.03413351]
[1767266988612,0.01067667,87969.0,87955.0,0.03413351]
[1767266988813,0.01067667,87968.0,87957.0,0.04911605]
[1767266988997,0.02459485,87969.0,87957.0,0.04911605]
[1767266989202,0.03527152,87968.0,87957.0,0.06048524]
[1767266989410,0.0114,87972.0,87957.0,0.06048524]
[1767266989602,0.03527544,87971.0,87958.0,0.01136906]
[1767266989944,0.01067667,87970.0,87958.0,0.01136906]
[1767266990145,0.01067667,87969.0,87957.0,0.06048524]
[1767266990344,0.02207667,87968.0,87957.0,0.06048524]
[1767266990561,0.0114,87968.0,87957.0,0.06048524]
[1767266991469,0.010851,87968.0,87957.0,0.06048524]
[1767266992010,0.010851,87968.0,87958.0,0.01136906]
[1767266992211,0.0114,87967.0,87957.0,0.06048524]
[1767266995442,0.0114,87967.0,87958.0,0.01136906]
[1767266996183,0.0114,87967.0,87957.0,0.06048524]
[1767266996733,0.0114,87967.0,87958.0,0.01136906]
[1767266997285,0.0114,87967.0,87957.0,0.06048524]
[1767266998437,0.0114,87967.0,87958.0,0.01136906]
[1767266998970,0.16143372,87973.0,87959.0,0.04597603]
[1767266999172,0.04667691,87972.0,87959.0,0.05734496]
[1767266999388,0.03527691,87971.0,87959.0,0.05734496]
[1767266999731,0.01067706,87970.0,87959.0,0.05734496]
[1767267000417,0.01067706,87970.0,87960.0,0.0113688]
[1767267000620,0.01067706,87970.0,87959.0,0.05734496]
[1767267000819,0.01067706,87970.0,87959.0,0.04597603]
[1767267001131,0.01067706,87970.0,87959.0,0.05734496]
[1767267001324,0.01067706,87970.0,87959.0,0.04597603]
[1767267001741,0.01067739,87969.0,87959.0,0.04597603]
[1767267001888,0.02459985,87971.0,87959.0,0.04597603]
[1767267001889,0.01067739,87968.0,87959.0,0.04597603]
[1767267002099,0.02459985,87971.0,87959.0,0.04597603]
[1767267002321,0.01067753,87970.0,87959.0,0.04597603]
[1767267002501,0.01067753,87969.0,87959.0,0.04597603]
[1767267002700,0.01067753,87968.0,87959.0,0.05734496]
[1767267002921,0.02459985,87971.0,87959.0,0.05734496]
[1767267003136,0.01067753,87970.0,87959.0,0.05734496]
[1767267003332,0.01067753,87969.0,87959.0,0.05734496]
[1767267003516,0.01067753,87968.0,87959.0,0.05734496]
[1767267003719,0.02459985,87971.0,87959.0,0.05734496]
[1767267003932,0.02207772,87970.0,87959.0,0.04597603]
[1767267004269,0.03527757,87969.0,87959.0,0.04597603]
[1767267004396,0.01067772,87968.0,87959.0,0.05734496]
[1767267004806,0.01067772,87968.0,87960.0,0.0113688]
[1767267005042,0.01067772,87968.0,87959.0,0.04597603]
[1767267005587,0.01067772,87968.0,87959.0,0.04883781]
[1767267006599,0.01067772,87968.0,87960.0,0.0113688]
[1767267006953,0.01067772,87968.0,87959.0,0.04883781]
[1767267007272,0.01067772,87968.0,87960.0,0.0113688]
[1767267007691,0.01067772,87968.0,87959.0,0.04883781]
[1767267008491,0.01067772,87968.0,87961.0,0.01136867]
[1767267008654,0.01067772,87968.0,87959.0,0.04883781]
[1767267008857,0.01067772,87968.0,87960.0,0.0113688]
[1767267009500,0.01067772,87968.0,87959.0,0.04883781]
[1767267009697,0.01067772,87968.0,87960.0,0.0113688]
[1767267009908,0.01067772,87968.0,87959.0,0.04883781]
[1767267010068,0.01067772,87968.0,87960.0,0.0113688]
[1767267010598,0.01067772,87968.0,87959.0,0.04883781]
[1767267010811,0.01067772,87968.0,87960.0,0.0113688]
[1767267010967,0.01067772,87968.0,87959.0,0.04883781]
[1767267011358,0.01067772,87968.0,87960.0,0.0113688]
[1767267012368,0.01067772,87968.0,87959.0,0.04883781]
[1767267012576,0.01067772,87968.0,87960.0,0.0113688]
[1767267012815,0.01067772,87968.0,87959.0,0.04883781]
[1767267013393,0.01067772,87968.0,87962.0,0.01136854]
[1767267013588,0.0114,87970.0,87963.0,0.01136841]
[1767267014246,0.0114,87970.0,87964.0,0.01136828]
[1767267014394,0.0114,87970.0,87963.0,0.01136841]
[1767267014602,0.0114,87970.0,87964.0,0.01136828]
[1767267017740,0.0114,87970.0,87965.0,0.01136815]
[1767267018838,0.0114,87970.0,87964.0,0.01136828]
[1767267019361,0.0114,87970.0,87963.0,0.01136841]
[1767267019557,0.0114,87970.0,87964.0,0.01136828]
[1767267023099,0.0114,87970.0,87965.0,0.01136815]
[1767267023328,0.0114,87970.0,87962.0,0.01136854]
[1767267023531,0.0114,87970.0,87963.0,0.01136841]
[1767267024075,0.0114,87970.0,87962.0,0.01136854]
[1767267024276,0.0114,87970.0,87963.0,0.01136841]
[1767267025578,0.0114,87970.0,87964.0,0.01136828]
[1767267026488,0.0114,87970.0,87965.0,0.01136815]
[1767267027215,0.0114,87970.0,87966.0,0.01136802]
[1767267027417,0.0114,87970.0,87965.0,0.01136815]
[1767267027624,0.0001477,87977.0,87966.0,0.01136802]
[1767267027824,0.0114,87976.0,87969.0,0.01136764]
[1767267028042,0.0114,87976.0,87968.0,0.05683856]
[1767267028043,0.0114,87976.0,87970.0,0.01136751]
[1767267028773,0.0114,87976.0,87968.0,0.01136777]
[1767267028957,0.0114,87976.0,87969.0,0.01136764]
[1767267029161,0.0114,87976.0,87968.0,0.01136777]
[1767267029514,0.0114,87976.0,87969.0,0.01136764]
[1767267031177,0.0114,87976.0,87968.0,0.01136777]
[1767267031543,0.0114,87976.0,87969.0,0.01136764]
[1767267032743,0.0114,87976.0,87968.0,0.01136777]
[1767267032943,0.0114,87976.0,87969.0,0.01136764]
[1767267033334,0.0114,87976.0,87967.0,0.01136789]
[1767267033678,0.0114,87976.0,87968.0,0.01136777]
[1767267034001,0.0114,87976.0,87967.0,0.01136789]
[1767267034182,0.0114,87976.0,87968.0,0.01136777]
[1767267034380,0.0114,87976.0,87969.0,0.01136764]
[1767267034806,0.0114,87976.0,87968.0,0.01136777]
[1767267035373,0.0114,87976.0,87969.0,0.01136764]
[1767267036045,0.0114,87976.0,87967.0,0.01136789]
[1767267036524,0.0114,87976.0,87968.0,0.01136777]